[Event "Titled Tuesday Blitz May 31 Late 2022"]
[White "Abarca Gonzalez, Nicolas"]
[Black "Jeet, Jain"]
[WhiteFideId "3409422"]
[BlackFideId "5073022"]
[WhiteElo "2504"]
[BlackElo "2028"]
[Result "1-0"]
[Round "05"]
[TimeControl "180+1"]
[Date "2022.05.31"]
[WhiteClock "0:01:37"]
[BlackClock "0:01:05"]

1. e4 {[%clk 0:03:00]}  c5 {[%clk 0:02:59]} 2. Nf3 {[%clk 0:02:57]}  g6 {[%clk 0:02:59]} 3. h4 {[%clk 0:02:55]}  h5 {[%clk 0:02:58]} 4. Bc4 {[%clk 0:02:49]}  Bg7 {[%clk 0:02:57]} 5. Nc3 {[%clk 0:02:47]}  Nc6 {[%clk 0:02:57]} 6. a3 {[%clk 0:02:47]}  e6 {[%clk 0:02:55]} 7. d3 {[%clk 0:02:45]}  Nge7 {[%clk 0:02:52]} 8. Ba2 {[%clk 0:02:38]}  d5 {[%clk 0:02:51]} 9. Ng5 {[%clk 0:02:33]}  O-O {[%clk 0:02:49]} 10. g4 {[%clk 0:02:31]}  hxg4 {[%clk 0:02:41]} 11. h5 {[%clk 0:02:28]}  Nd4 {[%clk 0:02:23]} 12. Qxg4 {[%clk 0:02:20]}  e5 {[%clk 0:02:21]} 13. Qh4 {[%clk 0:02:14]}  Re8 {[%clk 0:02:01]} 14. Nxd5 {[%clk 0:02:07]}  Nxd5 {[%clk 0:01:57]} 15. hxg6 {[%clk 0:01:47]}  fxg6 {[%clk 0:01:05]} 16. Bxd5+ {[%clk 0:01:41]}  Kf8 {[%clk 0:01:05]} 17. Nh7# {[%clk 0:01:37]} 1-0


[Site "https://www.chess.com"]

[Event "Titled Tuesday Blitz May 31 Late 2022"]
[White "Chigaev, Maksim"]
[Black "Maksimenko, Viktor"]
[WhiteFideId "4108116"]
[BlackFideId "13710478"]
[WhiteElo "2457"]
[BlackElo "2269"]
[Result "1-0"]
[Round "05"]
[TimeControl "180+1"]
[Date "2022.06.01"]
[WhiteClock "0:00:13"]
[BlackClock "0:00:09"]

1. Nf3 {[%clk 0:02:59]}  d5 {[%clk 0:02:59]} 2. e3 {[%clk 0:02:57]}  c6 {[%clk 0:02:57]} 3. c4 {[%clk 0:02:56]}  Nf6 {[%clk 0:02:53]} 4. Nc3 {[%clk 0:02:57]}  g6 {[%clk 0:02:52]} 5. h3 {[%clk 0:02:55]}  Bg7 {[%clk 0:02:50]} 6. Be2 {[%clk 0:02:55]}  O-O {[%clk 0:02:50]} 7. O-O {[%clk 0:02:55]}  Re8 {[%clk 0:02:45]} 8. d4 {[%clk 0:02:54]}  e6 {[%clk 0:02:44]} 9. a4 {[%clk 0:02:53]}  a5 {[%clk 0:02:41]} 10. b3 {[%clk 0:02:53]}  b6 {[%clk 0:02:41]} 11. Ba3 {[%clk 0:02:53]}  Bb7 {[%clk 0:02:40]} 12. Rc1 {[%clk 0:02:47]}  Nbd7 {[%clk 0:02:39]} 13. Qc2 {[%clk 0:02:44]}  Rc8 {[%clk 0:02:39]} 14. Rfd1 {[%clk 0:02:44]}  Nb8 {[%clk 0:02:13]} 15. Qb2 {[%clk 0:02:40]}  Na6 {[%clk 0:02:10]} 16. cxd5 {[%clk 0:02:37]}  exd5 {[%clk 0:02:08]} 17. b4 {[%clk 0:02:28]}  axb4 {[%clk 0:02:03]} 18. Bxb4 {[%clk 0:02:28]}  Nxb4 {[%clk 0:02:03]} 19. Qxb4 {[%clk 0:02:29]}  Ba8 {[%clk 0:01:52]} 20. Ba6 {[%clk 0:02:14]}  c5 {[%clk 0:01:42]} 21. Qb3 {[%clk 0:02:12]}  Rb8 {[%clk 0:01:42]} 22. Bb5 {[%clk 0:02:09]}  Re7 {[%clk 0:01:40]} 23. Qa3 {[%clk 0:01:57]}  Rc7 {[%clk 0:01:32]} 24. Ne5 {[%clk 0:01:41]}  c4 {[%clk 0:01:15]} 25. f4 {[%clk 0:01:36]}  Bf8 {[%clk 0:01:14]} 26. Qb2 {[%clk 0:01:36]}  Qd6 {[%clk 0:01:08]} 27. Rb1 {[%clk 0:01:32]}  Qa3 {[%clk 0:01:07]} 28. Qxa3 {[%clk 0:01:29]}  Bxa3 {[%clk 0:01:08]} 29. g4 {[%clk 0:01:29]}  h6 {[%clk 0:01:02]} 30. h4 {[%clk 0:01:23]}  Bd6 {[%clk 0:00:26]} 31. g5 {[%clk 0:01:22]}  hxg5 {[%clk 0:00:27]} 32. hxg5 {[%clk 0:01:22]}  Nh5 {[%clk 0:00:28]} 33. Kf2 {[%clk 0:01:14]}  Ng7 {[%clk 0:00:28]} 34. Ng4 {[%clk 0:01:10]}  Be7 {[%clk 0:00:26]} 35. Nh6+ {[%clk 0:01:05]}  Kf8 {[%clk 0:00:26]} 36. Rh1 {[%clk 0:01:05]}  Rd8 {[%clk 0:00:22]} 37. Ke2 {[%clk 0:01:05]}  Nh5 {[%clk 0:00:21]} 38. Kd2 {[%clk 0:01:04]}  Kg7 {[%clk 0:00:21]} 39. Kc2 {[%clk 0:00:55]}  Ng3 {[%clk 0:00:21]} 40. Rh3 {[%clk 0:00:54]}  Nh5 {[%clk 0:00:20]} 41. Rbh1 {[%clk 0:00:54]}  Rh8 {[%clk 0:00:19]} 42. Ng4 {[%clk 0:00:47]}  Bb7 {[%clk 0:00:14]} 43. Ne5 {[%clk 0:00:47]}  Bb4 {[%clk 0:00:13]} 44. Bd7 {[%clk 0:00:42]}  Bxc3 {[%clk 0:00:11]} 45. Kxc3 {[%clk 0:00:43]}  Bc8 {[%clk 0:00:11]} 46. Bxc8 {[%clk 0:00:41]}  Rcxc8 {[%clk 0:00:12]} 47. f5 {[%clk 0:00:41]}  Ra8 {[%clk 0:00:11]} 48. f6+ {[%clk 0:00:39]}  Kh7 {[%clk 0:00:10]} 49. Nxf7 {[%clk 0:00:32]}  Rhc8 {[%clk 0:00:10]} 50. Ne5 {[%clk 0:00:31]}  Rxa4 {[%clk 0:00:10]} 51. Rxh5+ {[%clk 0:00:26]}  gxh5 {[%clk 0:00:11]} 52. Rxh5+ {[%clk 0:00:27]}  Kg8 {[%clk 0:00:12]} 53. g6 {[%clk 0:00:27]}  b5 {[%clk 0:00:10]} 54. g7 {[%clk 0:00:14]}  b4+ {[%clk 0:00:10]} 55. Kd2 {[%clk 0:00:13]}  c3+ {[%clk 0:00:09]} 56. Kd3 {[%clk 0:00:13]} 1-0


[Site "https://www.chess.com"]

[Event "Titled Tuesday Blitz May 31 Late 2022"]
[White "Darini, Pouria"]
[Black "Msellek, Ilyass"]
[WhiteFideId "12502200"]
[BlackFideId "675938"]
[WhiteElo "2483"]
[BlackElo "2221"]
[Result "1-0"]
[Round "05"]
[TimeControl "180+1"]
[Date "2022.05.31"]
[WhiteClock "0:00:11"]
[BlackClock "0:00:01"]

1. b3 {[%clk 0:03:00]}  a5 {[%clk 0:02:43]} 2. Bb2 {[%clk 0:02:52]}  a4 {[%clk 0:02:37]} 3. b4 {[%clk 0:02:52]}  e6 {[%clk 0:02:35]} 4. a3 {[%clk 0:02:52]}  Nf6 {[%clk 0:02:31]} 5. e3 {[%clk 0:02:51]}  c5 {[%clk 0:02:31]} 6. bxc5 {[%clk 0:02:47]}  Bxc5 {[%clk 0:02:32]} 7. Nf3 {[%clk 0:02:48]}  O-O {[%clk 0:02:31]} 8. d4 {[%clk 0:02:47]}  Be7 {[%clk 0:02:25]} 9. c4 {[%clk 0:02:47]}  d5 {[%clk 0:02:24]} 10. Nc3 {[%clk 0:02:46]}  Nc6 {[%clk 0:02:06]} 11. Be2 {[%clk 0:02:33]}  Qa5 {[%clk 0:01:49]} 12. O-O {[%clk 0:02:32]}  Bd7 {[%clk 0:01:49]} 13. Ne5 {[%clk 0:02:24]}  Be8 {[%clk 0:01:43]} 14. f4 {[%clk 0:02:21]}  dxc4 {[%clk 0:01:30]} 15. Nxc4 {[%clk 0:02:17]}  Qa7 {[%clk 0:01:30]} 16. Nb5 {[%clk 0:02:12]}  Qb8 {[%clk 0:01:27]} 17. Rb1 {[%clk 0:02:08]}  Nd5 {[%clk 0:01:23]} 18. Qd2 {[%clk 0:01:56]}  Qd8 {[%clk 0:01:16]} 19. e4 {[%clk 0:01:51]}  Nf6 {[%clk 0:01:16]} 20. Bf3 {[%clk 0:01:44]}  Na5 {[%clk 0:01:11]} 21. Nxa5 {[%clk 0:01:32]}  Bxb5 {[%clk 0:01:10]} 22. Nxb7 {[%clk 0:01:32]}  Qd7 {[%clk 0:01:01]} 23. e5 {[%clk 0:01:28]}  Nd5 {[%clk 0:00:56]} 24. Nc5 {[%clk 0:01:27]}  Bxc5 {[%clk 0:00:51]} 25. dxc5 {[%clk 0:01:28]}  Bxf1 {[%clk 0:00:52]} 26. Rxf1 {[%clk 0:01:29]}  Rab8 {[%clk 0:00:50]} 27. f5 {[%clk 0:01:25]}  Rb3 {[%clk 0:00:33]} 28. f6 {[%clk 0:01:24]}  Qb5 {[%clk 0:00:29]} 29. Qg5 {[%clk 0:01:18]}  Qxc5+ {[%clk 0:00:16]} 30. Kh1 {[%clk 0:01:17]}  Nxf6 {[%clk 0:00:16]} 31. Bc1 {[%clk 0:01:05]}  Nd7 {[%clk 0:00:13]} 32. Bf4 {[%clk 0:01:04]}  Rfb8 {[%clk 0:00:12]} 33. h4 {[%clk 0:01:03]}  Rb1 {[%clk 0:00:12]} 34. Rxb1 {[%clk 0:00:47]}  Rxb1+ {[%clk 0:00:13]} 35. Kh2 {[%clk 0:00:48]}  h6 {[%clk 0:00:13]} 36. Qd8+ {[%clk 0:00:47]}  Nf8 {[%clk 0:00:14]} 37. Qd6 {[%clk 0:00:27]}  Qg1+ {[%clk 0:00:11]} 38. Kg3 {[%clk 0:00:27]}  Qe1+ {[%clk 0:00:11]} 39. Kh3 {[%clk 0:00:27]}  Ra1 {[%clk 0:00:11]} 40. Bd2 {[%clk 0:00:22]}  Qh1+ {[%clk 0:00:11]} 41. Kg3 {[%clk 0:00:23]}  Qb1 {[%clk 0:00:11]} 42. Bb4 {[%clk 0:00:22]}  Ng6 {[%clk 0:00:10]} 43. h5 {[%clk 0:00:16]}  Ra2 {[%clk 0:00:05]} 44. Qd8+ {[%clk 0:00:14]}  Kh7 {[%clk 0:00:05]} 45. hxg6+ {[%clk 0:00:15]}  Qxg6+ {[%clk 0:00:06]} 46. Kh2 {[%clk 0:00:13]}  Qf5 {[%clk 0:00:04]} 47. Qh4 {[%clk 0:00:12]}  Qxe5+ {[%clk 0:00:03]} 48. Qg3 {[%clk 0:00:10]}  Qxg3+ {[%clk 0:00:03]} 49. Kxg3 {[%clk 0:00:11]}  Kg6 {[%clk 0:00:04]} 50. Bc6 {[%clk 0:00:11]}  f5 {[%clk 0:00:02]} 51. Bxa4 {[%clk 0:00:11]}  e5 {[%clk 0:00:03]} 52. Be8+ {[%clk 0:00:11]}  Kf6 {[%clk 0:00:03]} 53. Bb5 {[%clk 0:00:12]}  f4+ {[%clk 0:00:03]} 54. Kf3 {[%clk 0:00:12]}  g5 {[%clk 0:00:02]} 55. a4 {[%clk 0:00:12]}  Kf5 {[%clk 0:00:01]} 56. Bd7+ {[%clk 0:00:12]}  Kf6 {[%clk 0:00:02]} 57. a5 {[%clk 0:00:13]}  Rb2 {[%clk 0:00:02]} 58. Bc5 {[%clk 0:00:12]}  Rb3+ {[%clk 0:00:02]} 59. Ke4 {[%clk 0:00:11]}  Rc3 {[%clk 0:00:02]} 60. Bb6 {[%clk 0:00:10]}  Rc4+ {[%clk 0:00:02]} 61. Kd5 {[%clk 0:00:10]}  Rc1 {[%clk 0:00:02]} 62. Bd8+ {[%clk 0:00:08]}  Kg6 {[%clk 0:00:02]} 63. a6 {[%clk 0:00:09]}  Ra1 {[%clk 0:00:01]} 64. Be8+ {[%clk 0:00:08]}  Kf5 {[%clk 0:00:01]} 65. Bb5 {[%clk 0:00:09]}  Rd1+ {[%clk 0:00:01]} 66. Kc6 {[%clk 0:00:09]}  Rxd8 {[%clk 0:00:01]} 67. Kc7 {[%clk 0:00:10]}  Rh8 {[%clk 0:00:01]} 68. Bd7+ {[%clk 0:00:10]}  Ke4 {[%clk 0:00:01]} 69. Bc8 {[%clk 0:00:11]} 1-0


[Site "https://www.chess.com"]

[Event "Titled Tuesday Blitz May 31 Late 2022"]
[White "Demchenko, Anton"]
[Black "Jarmula, Lukasz"]
[WhiteFideId "4160258"]
[BlackFideId "1160664"]
[WhiteElo "2539"]
[BlackElo "2181"]
[Result "1/2-1/2"]
[Round "05"]
[TimeControl "180+1"]
[Date "2022.05.31"]
[WhiteClock "0:00:08"]
[BlackClock "0:00:04"]

1. e4 {[%clk 0:03:00]}  e5 {[%clk 0:03:00]} 2. Nf3 {[%clk 0:03:00]}  Nf6 {[%clk 0:03:00]} 3. Nxe5 {[%clk 0:02:59]}  d6 {[%clk 0:03:00]} 4. Nf3 {[%clk 0:03:00]}  Nxe4 {[%clk 0:03:01]} 5. Nc3 {[%clk 0:03:00]}  Nxc3 {[%clk 0:03:00]} 6. dxc3 {[%clk 0:03:01]}  Be7 {[%clk 0:03:01]} 7. Bf4 {[%clk 0:03:00]}  O-O {[%clk 0:02:59]} 8. Qd2 {[%clk 0:03:00]}  Nd7 {[%clk 0:02:59]} 9. O-O-O {[%clk 0:03:01]}  Re8 {[%clk 0:02:58]} 10. Bc4 {[%clk 0:02:55]}  Nb6 {[%clk 0:02:51]} 11. Bd3 {[%clk 0:02:51]}  Bg4 {[%clk 0:02:46]} 12. h3 {[%clk 0:02:45]}  Bxf3 {[%clk 0:02:45]} 13. gxf3 {[%clk 0:02:46]}  Bf6 {[%clk 0:02:43]} 14. h4 {[%clk 0:02:40]}  Qd7 {[%clk 0:02:40]} 15. Bg5 {[%clk 0:02:30]}  Qe6 {[%clk 0:02:30]} 16. Kb1 {[%clk 0:02:21]}  Bxg5 {[%clk 0:01:46]} 17. hxg5 {[%clk 0:02:18]}  g6 {[%clk 0:01:46]} 18. Rh4 {[%clk 0:02:13]}  Kg7 {[%clk 0:01:24]} 19. Rdh1 {[%clk 0:02:01]}  Rh8 {[%clk 0:01:24]} 20. Re1 {[%clk 0:01:51]}  Qd5 {[%clk 0:01:18]} 21. Qf4 {[%clk 0:01:47]}  Nd7 {[%clk 0:01:16]} 22. Bc4 {[%clk 0:01:40]}  Qf5 {[%clk 0:01:14]} 23. Qxf5 {[%clk 0:00:34]}  gxf5 {[%clk 0:01:14]} 24. Re7 {[%clk 0:00:34]}  Ne5 {[%clk 0:01:10]} 25. Bb3 {[%clk 0:00:35]}  Rhf8 {[%clk 0:00:49]} 26. Rxc7 {[%clk 0:00:28]}  Nxf3 {[%clk 0:00:48]} 27. Rf4 {[%clk 0:00:26]}  Nd2+ {[%clk 0:00:47]} 28. Kc1 {[%clk 0:00:25]}  Nxb3+ {[%clk 0:00:47]} 29. cxb3 {[%clk 0:00:23]}  Kg6 {[%clk 0:00:46]} 30. Rxb7 {[%clk 0:00:13]}  Kxg5 {[%clk 0:00:46]} 31. Rd4 {[%clk 0:00:13]}  h5 {[%clk 0:00:40]} 32. Rbb4 {[%clk 0:00:12]}  a5 {[%clk 0:00:37]} 33. Ra4 {[%clk 0:00:11]}  Rh8 {[%clk 0:00:35]} 34. Rh4 {[%clk 0:00:11]}  Rae8 {[%clk 0:00:33]} 35. Kd2 {[%clk 0:00:11]}  Re4 {[%clk 0:00:32]} 36. Raxe4 {[%clk 0:00:08]}  fxe4 {[%clk 0:00:33]} 37. Rxe4 {[%clk 0:00:09]}  h4 {[%clk 0:00:33]} 38. Re1 {[%clk 0:00:06]}  Kf4 {[%clk 0:00:33]} 39. Rh1 {[%clk 0:00:02]}  Kf3 {[%clk 0:00:32]} 40. b4 {[%clk 0:00:02]}  axb4 {[%clk 0:00:30]} 41. cxb4 {[%clk 0:00:03]}  Kg2 {[%clk 0:00:29]} 42. Rc1 {[%clk 0:00:03]}  h3 {[%clk 0:00:29]} 43. a4 {[%clk 0:00:03]}  h2 {[%clk 0:00:28]} 44. b5 {[%clk 0:00:04]}  Rc8 {[%clk 0:00:24]} 45. Rb1 {[%clk 0:00:02]}  Rb8 {[%clk 0:00:18]} 46. b3 {[%clk 0:00:02]}  h1=Q {[%clk 0:00:18]} 47. Rxh1 {[%clk 0:00:02]}  Kxh1 {[%clk 0:00:19]} 48. Kc3 {[%clk 0:00:02]}  Kg2 {[%clk 0:00:19]} 49. Kb4 {[%clk 0:00:02]}  Kxf2 {[%clk 0:00:20]} 50. a5 {[%clk 0:00:03]}  Ke3 {[%clk 0:00:20]} 51. b6 {[%clk 0:00:04]}  f5 {[%clk 0:00:18]} 52. Kb5 {[%clk 0:00:04]}  f4 {[%clk 0:00:19]} 53. a6 {[%clk 0:00:05]}  f3 {[%clk 0:00:18]} 54. a7 {[%clk 0:00:06]}  Re8 {[%clk 0:00:15]} 55. b7 {[%clk 0:00:06]}  f2 {[%clk 0:00:15]} 56. b8=Q {[%clk 0:00:06]}  f1=Q+ {[%clk 0:00:15]} 57. Kc6 {[%clk 0:00:06]}  Qf3+ {[%clk 0:00:12]} 58. Kd7 {[%clk 0:00:06]}  Qf7+ {[%clk 0:00:10]} 59. Kc6 {[%clk 0:00:07]}  Qf3+ {[%clk 0:00:06]} 60. Kd7 {[%clk 0:00:07]}  Qf7+ {[%clk 0:00:05]} 61. Kc6 {[%clk 0:00:08]}  Qf3+ {[%clk 0:00:04]} 1/2-1/2


[Site "https://www.chess.com"]

[Event "Titled Tuesday Blitz May 31 Late 2022"]
[White "Drygalov, Andrey"]
[Black "Nakamura, Hikaru"]
[WhiteFideId "24171735"]
[BlackFideId "2016192"]
[WhiteElo "2540"]
[BlackElo "2850"]
[Result "0-1"]
[Round "05"]
[TimeControl "180+1"]
[Date "2022.05.31"]
[WhiteClock "0:00:21"]
[BlackClock "0:01:10"]

1. e4 {[%clk 0:02:59]}  c5 {[%clk 0:02:57]} 2. Nf3 {[%clk 0:02:59]}  e6 {[%clk 0:02:57]} 3. d4 {[%clk 0:02:59]}  cxd4 {[%clk 0:02:58]} 4. Nxd4 {[%clk 0:03:00]}  Nf6 {[%clk 0:02:58]} 5. Nc3 {[%clk 0:03:00]}  d6 {[%clk 0:02:57]} 6. g4 {[%clk 0:03:00]}  a6 {[%clk 0:02:55]} 7. g5 {[%clk 0:02:59]}  Nfd7 {[%clk 0:02:55]} 8. h4 {[%clk 0:02:58]}  b5 {[%clk 0:02:54]} 9. a3 {[%clk 0:02:50]}  Bb7 {[%clk 0:02:52]} 10. Be3 {[%clk 0:02:49]}  Nb6 {[%clk 0:02:50]} 11. f4 {[%clk 0:02:41]}  N8d7 {[%clk 0:02:49]} 12. Qe2 {[%clk 0:02:29]}  Rc8 {[%clk 0:02:48]} 13. Bg2 {[%clk 0:02:09]}  Nc4 {[%clk 0:02:35]} 14. Bc1 {[%clk 0:02:09]}  g6 {[%clk 0:02:33]} 15. f5 {[%clk 0:02:01]}  e5 {[%clk 0:02:07]} 16. Nb3 {[%clk 0:01:57]}  Ndb6 {[%clk 0:02:02]} 17. O-O {[%clk 0:01:48]}  Rc7 {[%clk 0:01:58]} 18. Qf2 {[%clk 0:01:39]}  gxf5 {[%clk 0:01:47]} 19. Qxf5 {[%clk 0:01:34]}  Bg7 {[%clk 0:01:42]} 20. Nd5 {[%clk 0:01:01]}  Nxd5 {[%clk 0:01:39]} 21. exd5 {[%clk 0:01:02]}  Nb6 {[%clk 0:01:32]} 22. Rd1 {[%clk 0:00:56]}  Qc8 {[%clk 0:01:24]} 23. Qxc8+ {[%clk 0:00:50]}  Bxc8 {[%clk 0:01:24]} 24. c3 {[%clk 0:00:50]}  h6 {[%clk 0:01:22]} 25. Na5 {[%clk 0:00:45]}  hxg5 {[%clk 0:01:22]} 26. hxg5 {[%clk 0:00:45]}  Rh4 {[%clk 0:01:16]} 27. Nc6 {[%clk 0:00:43]}  Bb7 {[%clk 0:01:14]} 28. b3 {[%clk 0:00:36]}  Rg4 {[%clk 0:01:11]} 29. Kf2 {[%clk 0:00:28]}  Rxg2+ {[%clk 0:01:08]} 30. Kxg2 {[%clk 0:00:27]}  Nxd5 {[%clk 0:01:08]} 31. Na5 {[%clk 0:00:28]}  Ne3+ {[%clk 0:01:08]} 32. Kg3 {[%clk 0:00:20]}  Nxd1 {[%clk 0:01:09]} 33. Nxb7 {[%clk 0:00:21]}  Rxb7 {[%clk 0:01:10]} 34. Bd2 {[%clk 0:00:19]}  Nb2 {[%clk 0:01:10]} 35. Kf3 {[%clk 0:00:19]}  d5 {[%clk 0:01:10]} 36. Ke2 {[%clk 0:00:19]}  e4 {[%clk 0:01:10]} 37. a4 {[%clk 0:00:20]}  bxa4 {[%clk 0:01:10]} 38. bxa4 {[%clk 0:00:21]}  Nc4 {[%clk 0:01:10]} 0-1


[Site "https://www.chess.com"]

[Event "Titled Tuesday Blitz May 31 Late 2022"]
[White "Dubov, Daniil"]
[Black "Goncalves, Ivan Mesquita V"]
[WhiteFideId "24126055"]
[BlackFideId "2114224"]
[WhiteElo "2791"]
[BlackElo "2299"]
[Result "1-0"]
[Round "05"]
[TimeControl "180+1"]
[Date "2022.05.31"]
[WhiteClock "0:00:47"]
[BlackClock "0:00:21"]

1. d4 {[%clk 0:02:51]}  b6 {[%clk 0:02:56]} 2. e4 {[%clk 0:02:50]}  Bb7 {[%clk 0:02:56]} 3. Bd3 {[%clk 0:02:49]}  e6 {[%clk 0:02:56]} 4. Nf3 {[%clk 0:02:48]}  d6 {[%clk 0:02:54]} 5. O-O {[%clk 0:02:48]}  h6 {[%clk 0:02:52]} 6. c4 {[%clk 0:02:46]}  Nd7 {[%clk 0:02:51]} 7. Nc3 {[%clk 0:02:46]}  g6 {[%clk 0:02:37]} 8. Be3 {[%clk 0:02:28]}  Bg7 {[%clk 0:02:35]} 9. Qd2 {[%clk 0:02:23]}  Ngf6 {[%clk 0:02:35]} 10. h3 {[%clk 0:02:22]}  e5 {[%clk 0:02:25]} 11. dxe5 {[%clk 0:02:06]}  Nxe5 {[%clk 0:02:22]} 12. Nxe5 {[%clk 0:02:06]}  dxe5 {[%clk 0:02:22]} 13. Rfd1 {[%clk 0:02:05]}  c6 {[%clk 0:01:47]} 14. c5 {[%clk 0:01:58]}  b5 {[%clk 0:01:08]} 15. Nxb5 {[%clk 0:01:57]}  cxb5 {[%clk 0:01:06]} 16. Bxb5+ {[%clk 0:01:56]}  Ke7 {[%clk 0:01:05]} 17. Qb4 {[%clk 0:01:49]}  a5 {[%clk 0:01:04]} 18. c6+ {[%clk 0:01:05]}  axb4 {[%clk 0:00:59]} 19. Bc5+ {[%clk 0:01:04]}  Ke6 {[%clk 0:00:47]} 20. Bc4+ {[%clk 0:01:04]}  Nd5 {[%clk 0:00:44]} 21. Rxd5 {[%clk 0:01:03]}  Qh4 {[%clk 0:00:21]} 22. Rd7+ {[%clk 0:00:47]} 1-0


[Site "https://www.chess.com"]

[Event "Titled Tuesday Blitz May 31 Late 2022"]
[White "Fedoseev, Vladimir"]
[Black "Salimova, Nurgyul"]
[WhiteFideId "24130737"]
[BlackFideId "2915138"]
[WhiteElo "2726"]
[BlackElo "2185"]
[Result "1-0"]
[Round "05"]
[TimeControl "180+1"]
[Date "2022.05.31"]
[WhiteClock "0:01:08"]
[BlackClock "0:00:02"]

1. e4 {[%clk 0:03:00]}  c6 {[%clk 0:02:59]} 2. Nf3 {[%clk 0:02:59]}  d5 {[%clk 0:02:59]} 3. d3 {[%clk 0:03:00]}  dxe4 {[%clk 0:02:57]} 4. dxe4 {[%clk 0:03:01]}  Qxd1+ {[%clk 0:02:57]} 5. Kxd1 {[%clk 0:03:01]}  Nf6 {[%clk 0:02:54]} 6. Nbd2 {[%clk 0:02:59]}  h5 {[%clk 0:02:45]} 7. Ne5 {[%clk 0:02:51]}  Ng4 {[%clk 0:02:28]} 8. Nd3 {[%clk 0:02:50]}  Nd7 {[%clk 0:02:10]} 9. h3 {[%clk 0:02:45]}  Ngf6 {[%clk 0:02:08]} 10. e5 {[%clk 0:02:39]}  Nd5 {[%clk 0:02:07]} 11. Ne4 {[%clk 0:02:40]}  b6 {[%clk 0:02:01]} 12. b3 {[%clk 0:02:10]}  Ba6 {[%clk 0:01:51]} 13. c4 {[%clk 0:02:09]}  Nc7 {[%clk 0:01:48]} 14. Bb2 {[%clk 0:02:10]}  c5 {[%clk 0:01:43]} 15. g3 {[%clk 0:02:07]}  Bb7 {[%clk 0:01:43]} 16. Bg2 {[%clk 0:02:07]}  O-O-O {[%clk 0:01:37]} 17. Kc2 {[%clk 0:02:07]}  Ne6 {[%clk 0:01:37]} 18. f4 {[%clk 0:02:04]}  g6 {[%clk 0:01:37]} 19. h4 {[%clk 0:02:02]}  Bg7 {[%clk 0:01:30]} 20. Rae1 {[%clk 0:02:02]}  f5 {[%clk 0:00:57]} 21. exf6 {[%clk 0:02:02]}  Nxf6 {[%clk 0:00:57]} 22. Bh3 {[%clk 0:01:51]}  Ng4 {[%clk 0:00:44]} 23. Bxg7 {[%clk 0:01:46]}  Nxg7 {[%clk 0:00:44]} 24. Ndf2 {[%clk 0:01:46]}  Rd4 {[%clk 0:00:31]} 25. Re2 {[%clk 0:01:40]}  Nf5 {[%clk 0:00:29]} 26. Rhe1 {[%clk 0:01:40]}  Kd8 {[%clk 0:00:06]} 27. Bxg4 {[%clk 0:01:38]}  hxg4 {[%clk 0:00:05]} 28. Ng5 {[%clk 0:01:39]}  Re8 {[%clk 0:00:02]} 29. Nxg4 {[%clk 0:01:36]}  Kd7 {[%clk 0:00:02]} 30. Ne5+ {[%clk 0:01:35]}  Kc8 {[%clk 0:00:02]} 31. Rg1 {[%clk 0:01:33]}  a5 {[%clk 0:00:01]} 32. Ree1 {[%clk 0:01:29]}  Rd6 {[%clk 0:00:01]} 33. Kc3 {[%clk 0:01:28]}  Nd4 {[%clk 0:00:01]} 34. Re3 {[%clk 0:01:25]}  a4 {[%clk 0:00:01]} 35. Rge1 {[%clk 0:01:24]}  axb3 {[%clk 0:00:01]} 36. axb3 {[%clk 0:01:23]}  Kc7 {[%clk 0:00:02]} 37. Nef7 {[%clk 0:01:17]}  Rd7 {[%clk 0:00:02]} 38. Ne6+ {[%clk 0:01:18]}  Nxe6 {[%clk 0:00:02]} 39. Rxe6 {[%clk 0:01:17]}  Bc6 {[%clk 0:00:01]} 40. Rxg6 {[%clk 0:01:13]}  Bf3 {[%clk 0:00:01]} 41. Ne5 {[%clk 0:01:12]}  Bh5 {[%clk 0:00:01]} 42. Rh6 {[%clk 0:01:11]}  Rd1 {[%clk 0:00:02]} 43. Rxd1 {[%clk 0:01:09]}  Bxd1 {[%clk 0:00:02]} 44. g4 {[%clk 0:01:09]}  Rd8 {[%clk 0:00:02]} 45. g5 {[%clk 0:01:08]} 1-0


[Site "https://www.chess.com"]

[Event "Titled Tuesday Blitz May 31 Late 2022"]
[White "Garcia, Gabriel Gonzaga"]
[Black "Tanenbaum, Zachary"]
[WhiteFideId "2138956"]
[BlackFideId "2060850"]
[WhiteElo "2240"]
[BlackElo "2168"]
[Result "0-1"]
[Round "05"]
[TimeControl "180+1"]
[Date "2022.06.01"]
[WhiteClock "0:00:16"]
[BlackClock "0:00:14"]

1. e4 {[%clk 0:02:59]}  e5 {[%clk 0:02:59]} 2. Nf3 {[%clk 0:02:59]}  Nc6 {[%clk 0:03:00]} 3. Bc4 {[%clk 0:02:11]}  Nf6 {[%clk 0:03:00]} 4. d3 {[%clk 0:02:00]}  Be7 {[%clk 0:03:01]} 5. O-O {[%clk 0:01:59]}  O-O {[%clk 0:03:01]} 6. c3 {[%clk 0:01:59]}  d5 {[%clk 0:03:01]} 7. exd5 {[%clk 0:02:00]}  Nxd5 {[%clk 0:03:02]} 8. Re1 {[%clk 0:02:01]}  Bg4 {[%clk 0:03:02]} 9. Nbd2 {[%clk 0:01:58]}  a6 {[%clk 0:03:02]} 10. Ne4 {[%clk 0:01:56]}  Nb6 {[%clk 0:03:02]} 11. Bb3 {[%clk 0:01:55]}  Bd6 {[%clk 0:03:01]} 12. h3 {[%clk 0:01:52]}  Bh5 {[%clk 0:02:59]} 13. Ng3 {[%clk 0:01:53]}  Bg6 {[%clk 0:02:46]} 14. d4 {[%clk 0:01:48]}  exd4 {[%clk 0:02:41]} 15. Nxd4 {[%clk 0:01:49]}  Nxd4 {[%clk 0:02:22]} 16. Qxd4 {[%clk 0:01:46]}  Re8 {[%clk 0:02:17]} 17. Rxe8+ {[%clk 0:01:36]}  Qxe8 {[%clk 0:02:18]} 18. Bf4 {[%clk 0:01:37]}  Rd8 {[%clk 0:02:17]} 19. Rd1 {[%clk 0:01:33]}  Rd7 {[%clk 0:02:08]} 20. Qe3 {[%clk 0:01:18]}  Re7 {[%clk 0:01:53]} 21. Qd2 {[%clk 0:01:10]}  Bc5 {[%clk 0:01:28]} 22. Bg5 {[%clk 0:01:02]}  Rd7 {[%clk 0:01:23]} 23. Qe1 {[%clk 0:01:02]}  Rxd1 {[%clk 0:01:16]} 24. Qxd1 {[%clk 0:01:03]}  h6 {[%clk 0:01:16]} 25. Qd8 {[%clk 0:01:03]}  Qxd8 {[%clk 0:00:51]} 26. Bxd8 {[%clk 0:01:04]}  Bd6 {[%clk 0:00:50]} 27. Nf1 {[%clk 0:01:04]}  Kf8 {[%clk 0:00:50]} 28. Bh4 {[%clk 0:01:00]}  Nd7 {[%clk 0:00:43]} 29. Ne3 {[%clk 0:00:54]}  Nc5 {[%clk 0:00:40]} 30. Nc4 {[%clk 0:00:46]}  Bf4 {[%clk 0:00:29]} 31. Bd1 {[%clk 0:00:45]}  Bb1 {[%clk 0:00:26]} 32. a3 {[%clk 0:00:37]}  Ba2 {[%clk 0:00:21]} 33. Be2 {[%clk 0:00:36]}  Bxc4 {[%clk 0:00:18]} 34. Bxc4 {[%clk 0:00:36]}  Na4 {[%clk 0:00:19]} 35. b4 {[%clk 0:00:14]}  Nxc3 {[%clk 0:00:17]} 36. Kf1 {[%clk 0:00:15]}  g5 {[%clk 0:00:13]} 37. Bg3 {[%clk 0:00:15]}  Bxg3 {[%clk 0:00:13]} 38. fxg3 {[%clk 0:00:16]}  Nb1 {[%clk 0:00:14]} 39. a4 {[%clk 0:00:16]}  Nd2+ {[%clk 0:00:14]} 0-1


[Site "https://www.chess.com"]